[Event "Early-Titled-Tuesday-Blitz-October-10-2023"]
[Site "Chess.com"]
[Date "2023.10.10"]
[Round "4"]
[White "ama18"]
[Black "Man-Chuk"]
[Result "0-1"]
[WhiteElo "2547"]
[BlackElo "2751"]
[TimeControl "180+1"]
[EndTime "8:38:13 PDT"]
[Termination "Man-Chuk won by checkmate"]

1. e4 {[%clk 0:03:00.9]} 1... c5 {[%clk 0:02:59.4]} 2. Nc3 {[%clk 0:03:00]} 2...
Nc6 {[%clk 0:02:58.7]} 3. Bb5 {[%clk 0:02:57.6]} 3... Nd4 {[%clk 0:02:53.3]} 4.
Nf3 {[%clk 0:02:57.4]} 4... e6 {[%clk 0:02:47.1]} 5. O-O {[%clk 0:02:56.1]} 5...
a6 {[%clk 0:02:38]} 6. Bd3 {[%clk 0:02:50.4]} 6... Nc6 {[%clk 0:02:37.6]} 7. Re1
{[%clk 0:01:09.2]} 7... d6 {[%clk 0:02:33.5]} 8. Bf1 {[%clk 0:01:08.2]} 8... Nf6
{[%clk 0:02:31.3]} 9. d4 {[%clk 0:01:07.7]} 9... cxd4 {[%clk 0:02:31.3]} 10.
Nxd4 {[%clk 0:01:08.6]} 10... Qc7 {[%clk 0:02:30.6]} 11. g3 {[%clk 0:00:58.7]}
11... Be7 {[%clk 0:02:30.3]} 12. Bg2 {[%clk 0:00:57.1]} 12... O-O {[%clk
0:02:26.6]} 13. a4 {[%clk 0:00:52.5]} 13... Bd7 {[%clk 0:02:24.8]} 14. Nxc6
{[%clk 0:00:51.4]} 14... Bxc6 {[%clk 0:02:23.7]} 15. a5 {[%clk 0:00:52.3]} 15...
Rfd8 {[%clk 0:02:21.5]} 16. Be3 {[%clk 0:00:52.3]} 16... Nd7 {[%clk 0:01:59.7]}
17. Qd2 {[%clk 0:00:52.2]} 17... Rac8 {[%clk 0:01:56.5]} 18. Bd4 {[%clk
0:00:50.1]} 18... Bf6 {[%clk 0:01:44.9]} 19. Red1 {[%clk 0:00:44.8]} 19... Bxd4
{[%clk 0:01:21.8]} 20. Qxd4 {[%clk 0:00:45.7]} 20... Nc5 {[%clk 0:01:19.7]} 21.
b4 {[%clk 0:00:31.4]} 21... e5 {[%clk 0:01:19.6]} 22. Qd2 {[%clk 0:00:28.5]}
22... Ne6 {[%clk 0:01:19.1]} 23. Rac1 {[%clk 0:00:15.2]} 23... h6 {[%clk
0:00:30.5]} 24. Ne2 {[%clk 0:00:14.3]} 24... b6 {[%clk 0:00:26]} 25. axb6 {[%clk
0:00:12.5]} 25... Qxb6 {[%clk 0:00:26.9]} 26. c4 {[%clk 0:00:13.2]} 26... Ba4
{[%clk 0:00:22]} 27. Re1 {[%clk 0:00:12.5]} 27... Bb3 {[%clk 0:00:21.3]} 28. Qd3
{[%clk 0:00:10.7]} 28... Qxb4 {[%clk 0:00:21]} 29. Rb1 {[%clk 0:00:09.1]} 29...
Bxc4 {[%clk 0:00:20.9]} 30. Qe3 {[%clk 0:00:06.3]} 30... Qc5 {[%clk 0:00:20.2]}
31. Qd2 {[%clk 0:00:06.8]} 31... Bxe2 {[%clk 0:00:20]} 32. Qxe2 {[%clk
0:00:06.4]} 32... Nd4 {[%clk 0:00:20.1]} 33. Qxa6 {[%clk 0:00:06.6]} 33... Ra8
{[%clk 0:00:15.3]} 34. Qd3 {[%clk 0:00:06.5]} 34... Ra3 {[%clk 0:00:15]} 35. Qd1
{[%clk 0:00:05.7]} 35... Ra2 {[%clk 0:00:13.2]} 36. Rc1 {[%clk 0:00:06.1]} 36...
Qa7 {[%clk 0:00:09.9]} 37. Re3 {[%clk 0:00:06.4]} 37... Rb8 {[%clk 0:00:08.9]}
38. Kh1 {[%clk 0:00:06.5]} 38... Rxf2 {[%clk 0:00:08.4]} 39. Qe1 {[%clk
0:00:06.3]} 39... Rbb2 {[%clk 0:00:07.9]} 40. Bf1 {[%clk 0:00:02.7]} 40... Rxh2+
{[%clk 0:00:07.5]} 41. Kg1 {[%clk 0:00:03.6]} 41... Nf3# {[%clk 0:00:08.1]} 0-1

[Event "Early-Titled-Tuesday-Blitz-October-10-2023"]
[Site "Chess.com"]
[Date "2023.10.10"]
[Round "4"]
[White "Alina_Gumerovna"]
[Black "ChessQueen"]
[Result "1/2-1/2"]
[WhiteElo "2096"]
[BlackElo "2706"]
[TimeControl "180+1"]
[EndTime "8:38:13 PDT"]
[Termination "Game drawn by repetition"]

1. e4 {[%clk 0:02:59.9]} 1... c6 {[%clk 0:02:59.8]} 2. d4 {[%clk 0:02:59.8]}
2... d5 {[%clk 0:02:59.6]} 3. Nc3 {[%clk 0:03:00.2]} 3... dxe4 {[%clk
0:02:58.7]} 4. Nxe4 {[%clk 0:03:01.1]} 4... Nf6 {[%clk 0:02:59.3]} 5. Nxf6+
{[%clk 0:03:01.1]} 5... exf6 {[%clk 0:02:59.9]} 6. Nf3 {[%clk 0:03:00.6]} 6...
Bd6 {[%clk 0:02:59.2]} 7. Be2 {[%clk 0:03:00.7]} 7... O-O {[%clk 0:02:57.3]} 8.
O-O {[%clk 0:03:00.5]} 8... Be6 {[%clk 0:02:57.4]} 9. Be3 {[%clk 0:03:00.3]}
9... Nd7 {[%clk 0:02:54]} 10. h3 {[%clk 0:03:00.1]} 10... Rc8 {[%clk 0:02:50.3]}
11. c4 {[%clk 0:02:59.6]} 11... Bb8 {[%clk 0:02:47]} 12. Qd2 {[%clk 0:02:50.8]}
12... Qc7 {[%clk 0:02:42.7]} 13. Rad1 {[%clk 0:02:47.6]} 13... Rfd8 {[%clk
0:02:33.9]} 14. d5 {[%clk 0:02:21.8]} 14... Nf8 {[%clk 0:02:20.7]} 15. dxe6
{[%clk 0:01:45.5]} 15... Rxd2 {[%clk 0:02:18.9]} 16. exf7+ {[%clk 0:01:45.8]}
16... Qxf7 {[%clk 0:02:07.1]} 17. Rxd2 {[%clk 0:01:46.7]} 17... c5 {[%clk
0:02:07.4]} 18. Rfd1 {[%clk 0:01:44.7]} 18... b6 {[%clk 0:02:04.8]} 19. b3
{[%clk 0:01:43.4]} 19... Ne6 {[%clk 0:02:00.9]} 20. Rd7 {[%clk 0:01:39.7]} 20...
Qe8 {[%clk 0:01:55.2]} 21. Bd3 {[%clk 0:01:07.9]} 21... Rd8 {[%clk 0:01:51.9]}
22. Rxd8 {[%clk 0:01:06.3]} 22... Nxd8 {[%clk 0:01:52.7]} 23. Be4 {[%clk
0:01:01.5]} 23... Bc7 {[%clk 0:01:43.9]} 24. Bd5+ {[%clk 0:01:01.2]} 24... Kh8
{[%clk 0:01:44.1]} 25. Re1 {[%clk 0:00:57.3]} 25... Qf8 {[%clk 0:01:38.7]} 26.
Bd2 {[%clk 0:00:49]} 26... Nf7 {[%clk 0:01:31.5]} 27. Bc3 {[%clk 0:00:35.3]}
27... Ne5 {[%clk 0:00:45.3]} 28. Nxe5 {[%clk 0:00:33.9]} 28... fxe5 {[%clk
0:00:46.2]} 29. Bxe5 {[%clk 0:00:32.5]} 29... Bxe5 {[%clk 0:00:47.1]} 30. Rxe5
{[%clk 0:00:32.7]} 30... g6 {[%clk 0:00:46.9]} 31. Re3 {[%clk 0:00:30.5]} 31...
Qf6 {[%clk 0:00:45.6]} 32. a4 {[%clk 0:00:29.2]} 32... Qd6 {[%clk 0:00:42.4]}
33. g3 {[%clk 0:00:23.9]} 33... Qd7 {[%clk 0:00:39]} 34. Kg2 {[%clk 0:00:23.7]}
34... Kg7 {[%clk 0:00:39]} 35. h4 {[%clk 0:00:21.2]} 35... Qd8 {[%clk
0:00:36.1]} 36. Rf3 {[%clk 0:00:20]} 36... Qe8 {[%clk 0:00:34.3]} 37. Rf7+
{[%clk 0:00:19.7]} 37... Kh8 {[%clk 0:00:31.5]} 38. Rxa7 {[%clk 0:00:19.9]}
38... Qe5 {[%clk 0:00:31.5]} 39. Ra8+ {[%clk 0:00:15.3]} 39... Kg7 {[%clk
0:00:31.5]} 40. Rg8+ {[%clk 0:00:16.2]} 40... Kh6 {[%clk 0:00:27.1]} 41. Rf8
{[%clk 0:00:17.1]} 41... Qb2 {[%clk 0:00:25.4]} 42. Rf3 {[%clk 0:00:16.7]} 42...
Qa2 {[%clk 0:00:24.5]} 43. Re3 {[%clk 0:00:16.9]} 43... Kg7 {[%clk 0:00:22.8]}
44. Re7+ {[%clk 0:00:16.7]} 44... Kf6 {[%clk 0:00:20.8]} 45. Re3 {[%clk
0:00:17.6]} 45... Kg7 {[%clk 0:00:18.1]} 46. Rf3 {[%clk 0:00:18]} 46... Qb2
{[%clk 0:00:17.4]} 47. Rf7+ {[%clk 0:00:16.7]} 47... Kh8 {[%clk 0:00:14.4]} 48.
Rf3 {[%clk 0:00:17.6]} 48... Kg7 {[%clk 0:00:14.7]} 49. Rf7+ {[%clk 0:00:16.8]}
49... Kh8 {[%clk 0:00:14.7]} 50. Rf3 {[%clk 0:00:16.1]} 50... Kg7 {[%clk
0:00:15]} 1/2-1/2

[Event "Early-Titled-Tuesday-Blitz-October-10-2023"]
[Site "Chess.com"]
[Date "2023.10.10"]
[Round "4"]
[White "kingapolak"]
[Black "fu24"]
[Result "0-1"]
[WhiteElo "2053"]
[BlackElo "2619"]
[TimeControl "180+1"]
[EndTime "8:38:16 PDT"]
[Termination "fu24 won on time"]

1. e4 {[%clk 0:03:00.9]} 1... e6 {[%clk 0:02:38.3]} 2. d4 {[%clk 0:03:00.2]}
2... d5 {[%clk 0:02:38.1]} 3. Nd2 {[%clk 0:03:00.8]} 3... dxe4 {[%clk
0:02:36.3]} 4. Nxe4 {[%clk 0:03:00.8]} 4... Bd7 {[%clk 0:02:37.2]} 5. Nf3 {[%clk
0:02:51.4]} 5... Bc6 {[%clk 0:02:37.2]} 6. Bd3 {[%clk 0:02:51.6]} 6... Nd7
{[%clk 0:02:37.2]} 7. c3 {[%clk 0:02:48.1]} 7... Ngf6 {[%clk 0:02:35.7]} 8. Qc2
{[%clk 0:02:45.9]} 8... Be7 {[%clk 0:02:35.1]} 9. Bf4 {[%clk 0:02:41.5]} 9...
Bxe4 {[%clk 0:02:33.7]} 10. Bxe4 {[%clk 0:02:41.2]} 10... c6 {[%clk 0:02:34.6]}
11. Bd3 {[%clk 0:02:28.3]} 11... a5 {[%clk 0:02:34.5]} 12. O-O-O {[%clk
0:02:21.2]} 12... a4 {[%clk 0:02:17.8]} 13. a3 {[%clk 0:02:17.9]} 13... Qa5
{[%clk 0:02:17.6]} 14. Ne5 {[%clk 0:02:16.7]} 14... Nxe5 {[%clk 0:02:12.2]} 15.
Bxe5 {[%clk 0:02:11.8]} 15... O-O-O {[%clk 0:02:12.2]} 16. Kb1 {[%clk 0:02:09]}
16... Rd7 {[%clk 0:02:09.5]} 17. Rhe1 {[%clk 0:02:07.7]} 17... g6 {[%clk
0:02:00.7]} 18. g4 {[%clk 0:02:05.9]} 18... Rhd8 {[%clk 0:01:59.7]} 19. h3
{[%clk 0:02:02]} 19... Nd5 {[%clk 0:01:49.9]} 20. c4 {[%clk 0:01:55.8]} 20...
Nc7 {[%clk 0:01:42]} 21. Be4 {[%clk 0:01:47.8]} 21... Kb8 {[%clk 0:01:05.8]} 22.
Rd3 {[%clk 0:01:09.8]} 22... f6 {[%clk 0:00:57.5]} 23. Bxc7+ {[%clk 0:01:08.7]}
23... Qxc7 {[%clk 0:00:57.1]} 24. Red1 {[%clk 0:01:08.8]} 24... Qa5 {[%clk
0:00:54.5]} 25. f4 {[%clk 0:00:56.1]} 25... f5 {[%clk 0:00:48.3]} 26. Bf3 {[%clk
0:00:56]} 26... Bf6 {[%clk 0:00:48.4]} 27. d5 {[%clk 0:00:51.6]} 27... exd5
{[%clk 0:00:48.4]} 28. cxd5 {[%clk 0:00:44.7]} 28... fxg4 {[%clk 0:00:42.8]} 29.
hxg4 {[%clk 0:00:22.2]} 29... cxd5 {[%clk 0:00:42.7]} 30. g5 {[%clk 0:00:18.4]}
30... Bg7 {[%clk 0:00:34.9]} 31. Qg2 {[%clk 0:00:18.4]} 31... d4 {[%clk
0:00:25.2]} 32. Rc1 {[%clk 0:00:17.4]} 32... Rc7 {[%clk 0:00:24.3]} 33. Rxc7
{[%clk 0:00:16.2]} 33... Qxc7 {[%clk 0:00:25.2]} 34. Rd1 {[%clk 0:00:15.5]}
34... Rc8 {[%clk 0:00:23]} 35. Ka1 {[%clk 0:00:13.6]} 35... Qb6 {[%clk
0:00:20.3]} 36. Bg4 {[%clk 0:00:08]} 36... Rc7 {[%clk 0:00:18.5]} 37. Qd5 {[%clk
0:00:08]} 37... Rc2 {[%clk 0:00:13.7]} 38. Rb1 {[%clk 0:00:04.3]} 38... Ka7
{[%clk 0:00:13.4]} 39. Qd7 {[%clk 0:00:02.6]} 39... Rc7 {[%clk 0:00:02.9]} 40.
Qxa4+ {[%clk 0:00:01.9]} 40... Kb8 {[%clk 0:00:03.4]} 41. Qe8+ {[%clk
0:00:02.1]} 41... Ka7 {[%clk 0:00:04]} 0-1

[Event "Early-Titled-Tuesday-Blitz-October-10-2023"]
[Site "Chess.com"]
[Date "2023.10.10"]
[Round "4"]
[White "Ishowmoves57"]
[Black "maracayo"]
[Result "1/2-1/2"]
[WhiteElo "2184"]
[BlackElo "2374"]
[TimeControl "180+1"]
[EndTime "8:38:16 PDT"]
[Termination "Game drawn by repetition"]

1. e4 {[%clk 0:02:57]} 1... d6 {[%clk 0:02:58.2]} 2. d4 {[%clk 0:02:56.6]} 2...
Nf6 {[%clk 0:02:57.4]} 3. Nc3 {[%clk 0:02:56.7]} 3... c6 {[%clk 0:02:57.6]} 4.
Be3 {[%clk 0:02:52.4]} 4... Qa5 {[%clk 0:02:57.9]} 5. Qd2 {[%clk 0:02:51.1]}
5... e5 {[%clk 0:02:58.3]} 6. h3 {[%clk 0:02:33.5]} 6... Nbd7 {[%clk 0:02:56.8]}
7. Nf3 {[%clk 0:02:33.5]} 7... Be7 {[%clk 0:02:56.1]} 8. Be2 {[%clk 0:02:30.1]}
8... O-O {[%clk 0:02:54.1]} 9. O-O {[%clk 0:02:30]} 9... Qc7 {[%clk 0:02:53.3]}
10. a4 {[%clk 0:02:10.7]} 10... Re8 {[%clk 0:02:49.6]} 11. Bd3 {[%clk
0:02:06.8]} 11... h6 {[%clk 0:02:47.9]} 12. Ne2 {[%clk 0:01:59.1]} 12... Bf8
{[%clk 0:02:47]} 13. Ng3 {[%clk 0:01:57.1]} 13... exd4 {[%clk 0:02:28.7]} 14.
Bxd4 {[%clk 0:01:53]} 14... Ne5 {[%clk 0:02:24.9]} 15. Nxe5 {[%clk 0:01:43.4]}
15... dxe5 {[%clk 0:02:23.9]} 16. Be3 {[%clk 0:01:43.4]} 16... Be6 {[%clk
0:02:18.9]} 17. Qc3 {[%clk 0:01:39.4]} 17... a5 {[%clk 0:02:04.5]} 18. Bc4
{[%clk 0:01:31.7]} 18... Bb4 {[%clk 0:01:14.3]} 19. Qb3 {[%clk 0:01:26.5]} 19...
b5 {[%clk 0:01:10.8]} 20. Bxe6 {[%clk 0:01:15.2]} 20... Rxe6 {[%clk 0:01:11.7]}
21. axb5 {[%clk 0:01:11.6]} 21... cxb5 {[%clk 0:01:12.6]} 22. c3 {[%clk
0:01:10.7]} 22... Bc5 {[%clk 0:01:05.1]} 23. Qxb5 {[%clk 0:00:40]} 23... Bxe3
{[%clk 0:01:01.8]} 24. fxe3 {[%clk 0:00:38.1]} 24... Rb6 {[%clk 0:00:54.9]} 25.
Qe2 {[%clk 0:00:37.8]} 25... Rab8 {[%clk 0:00:48.2]} 26. Ra2 {[%clk 0:00:35]}
26... Qc5 {[%clk 0:00:30.6]} 27. Rf2 {[%clk 0:00:32.1]} 27... g6 {[%clk
0:00:26.9]} 28. Qf3 {[%clk 0:00:31.9]} 28... Kg7 {[%clk 0:00:24.9]} 29. Qe2
{[%clk 0:00:26.8]} 29... R8b7 {[%clk 0:00:23.1]} 30. Qf3 {[%clk 0:00:26.9]}
30... Rb5 {[%clk 0:00:20]} 31. Qe2 {[%clk 0:00:24.4]} 31... R7b6 {[%clk
0:00:19.2]} 32. Qf3 {[%clk 0:00:24.1]} 32... Qc4 {[%clk 0:00:18.3]} 33. b4
{[%clk 0:00:20.3]} 33... axb4 {[%clk 0:00:15.5]} 34. cxb4 {[%clk 0:00:21.2]}
34... Qxb4 {[%clk 0:00:15.1]} 35. Rac2 {[%clk 0:00:20.9]} 35... Qe7 {[%clk
0:00:14.8]} 36. Kh2 {[%clk 0:00:20]} 36... Qe6 {[%clk 0:00:15.1]} 37. Rce2
{[%clk 0:00:19.7]} 37... h5 {[%clk 0:00:15.4]} 38. Nf1 {[%clk 0:00:19.1]} 38...
Rb1 {[%clk 0:00:15]} 39. Qg3 {[%clk 0:00:18.8]} 39... h4 {[%clk 0:00:11]} 40.
Qf3 {[%clk 0:00:18.3]} 40... R1b3 {[%clk 0:00:08.6]} 41. Nd2 {[%clk 0:00:18.5]}
41... Rb2 {[%clk 0:00:07.6]} 42. Nf1 {[%clk 0:00:18.5]} 42... Rxe2 {[%clk
0:00:08.1]} 43. Rxe2 {[%clk 0:00:17.7]} 43... Rb4 {[%clk 0:00:08.2]} 44. Nd2
{[%clk 0:00:17]} 44... Qa6 {[%clk 0:00:08.1]} 45. Rf2 {[%clk 0:00:16.8]} 45...
Qe6 {[%clk 0:00:08.7]} 46. Nf1 {[%clk 0:00:16.7]} 46... Rb3 {[%clk 0:00:08.2]}
47. Nd2 {[%clk 0:00:17.1]} 47... Rb4 {[%clk 0:00:08.9]} 48. Rf1 {[%clk 0:00:16]}
48... Rb2 {[%clk 0:00:08.3]} 49. Rf2 {[%clk 0:00:16.4]} 49... Rb4 {[%clk
0:00:08.1]} 1/2-1/2

[Event "Early-Titled-Tuesday-Blitz-October-10-2023"]
[Site "Chess.com"]
[Date "2023.10.10"]
[Round "4"]
[White "MITerryble"]
[Black "MightyGMpretender"]
[Result "1-0"]
[WhiteElo "3018"]
[BlackElo "2757"]
[TimeControl "180+1"]
[EndTime "8:38:19 PDT"]
[Termination "MITerryble won by resignation"]

1. d4 {[%clk 0:02:47.3]} 1... d5 {[%clk 0:02:57.8]} 2. Nf3 {[%clk 0:02:47.3]}
2... Nf6 {[%clk 0:02:57.8]} 3. c4 {[%clk 0:02:46.8]} 3... e6 {[%clk 0:02:57.6]}
4. e3 {[%clk 0:02:45.5]} 4... Nbd7 {[%clk 0:02:54.1]} 5. b3 {[%clk 0:02:44.7]}
5... b6 {[%clk 0:02:53.6]} 6. Bd3 {[%clk 0:02:44.9]} 6... Bb7 {[%clk 0:02:53.6]}
7. O-O {[%clk 0:02:45.3]} 7... Bd6 {[%clk 0:02:53.5]} 8. Bb2 {[%clk 0:02:45.9]}
8... O-O {[%clk 0:02:53.2]} 9. Nbd2 {[%clk 0:02:45.7]} 9... Ne4 {[%clk
0:02:45.2]} 10. a3 {[%clk 0:02:42.7]} 10... f5 {[%clk 0:02:40.7]} 11. b4 {[%clk
0:02:41.5]} 11... c6 {[%clk 0:02:24.7]} 12. Ne5 {[%clk 0:02:15.6]} 12... Nxd2
{[%clk 0:02:05.4]} 13. Qxd2 {[%clk 0:02:16.5]} 13... Bxe5 {[%clk 0:01:22.2]} 14.
dxe5 {[%clk 0:02:16.7]} 14... Nxe5 {[%clk 0:01:22.9]} 15. Bxe5 {[%clk
0:02:03.1]} 15... dxc4 {[%clk 0:01:23.1]} 16. Qb2 {[%clk 0:02:03.8]} 16... cxd3
{[%clk 0:01:17.5]} 17. Bxg7 {[%clk 0:02:04]} 17... Rf7 {[%clk 0:01:15.5]} 18.
Be5 {[%clk 0:01:49.6]} 18... Qd5 {[%clk 0:01:12]} 19. f3 {[%clk 0:01:50.2]}
19... h6 {[%clk 0:01:12.1]} 20. Rac1 {[%clk 0:01:47.6]} 20... Kh7 {[%clk
0:01:10.8]} 21. Qc3 {[%clk 0:01:21.2]} 21... Rg8 {[%clk 0:01:08]} 22. Rf2 {[%clk
0:01:20]} 22... c5 {[%clk 0:01:00.9]} 23. bxc5 {[%clk 0:01:11.3]} 23... bxc5
{[%clk 0:01:01.8]} 24. Kh1 {[%clk 0:00:56.5]} 24... c4 {[%clk 0:01:00.6]} 25.
Bf4 {[%clk 0:00:50]} 25... Rfg7 {[%clk 0:00:57.9]} 26. Bg3 {[%clk 0:00:50.4]}
26... h5 {[%clk 0:00:50.2]} 27. Rg1 {[%clk 0:00:47.3]} 27... Rg6 {[%clk
0:00:30.4]} 28. Bf4 {[%clk 0:00:44.4]} 28... h4 {[%clk 0:00:26.2]} 29. h3 {[%clk
0:00:42.9]} 29... Re8 {[%clk 0:00:20.6]} 30. Be5 {[%clk 0:00:41.9]} 30... Rd8
{[%clk 0:00:19.1]} 31. Bd4 {[%clk 0:00:37.6]} 31... Rdg8 {[%clk 0:00:18]} 32.
Kh2 {[%clk 0:00:34.6]} 32... Qd6+ {[%clk 0:00:17.4]} 33. Be5 {[%clk 0:00:34.6]}
33... Qd5 {[%clk 0:00:18]} 34. Bf4 {[%clk 0:00:31.7]} 34... Bc6 {[%clk
0:00:15.7]} 35. Be5 {[%clk 0:00:31.3]} 35... a6 {[%clk 0:00:14.8]} 36. Bf4
{[%clk 0:00:31.4]} 36... R8g7 {[%clk 0:00:14.9]} 37. Be5 {[%clk 0:00:31.4]}
37... Rg8 {[%clk 0:00:15.2]} 38. Bf4 {[%clk 0:00:31.4]} 38... Re8 {[%clk
0:00:15.9]} 39. Be5 {[%clk 0:00:31.5]} 39... Rd8 {[%clk 0:00:16.6]} 40. Rd2
{[%clk 0:00:24.9]} 40... Rdg8 {[%clk 0:00:16.1]} 41. Rf2 {[%clk 0:00:24.6]}
41... Ba4 {[%clk 0:00:16.5]} 42. Bf4 {[%clk 0:00:22.7]} 42... Bb3 {[%clk
0:00:15.6]} 43. Be5 {[%clk 0:00:22.9]} 43... Qd7 {[%clk 0:00:15.6]} 44. Bf4
{[%clk 0:00:22.7]} 44... Qf7 {[%clk 0:00:14.9]} 45. Be5 {[%clk 0:00:23]} 45...
Qe7 {[%clk 0:00:14.8]} 46. Qd4 {[%clk 0:00:23.3]} 46... Qg5 {[%clk 0:00:14.7]}
47. Bf4 {[%clk 0:00:23]} 47... Qh5 {[%clk 0:00:15.1]} 48. Be5 {[%clk 0:00:22.4]}
48... Rh6 {[%clk 0:00:14.6]} 49. Qd7+ {[%clk 0:00:21.8]} 49... Kg6 {[%clk
0:00:14.6]} 50. Qxe6+ {[%clk 0:00:20.3]} 50... Kh7 {[%clk 0:00:15.2]} 51. Qe7+
{[%clk 0:00:19.7]} 51... Kg6 {[%clk 0:00:15.6]} 52. g4 {[%clk 0:00:18.5]} 1-0

[Event "Early-Titled-Tuesday-Blitz-October-10-2023"]
[Site "Chess.com"]
[Date "2023.10.10"]
[Round "4"]
[White "K_A_S_T_O_R"]
[Black "CheckThis4"]
[Result "1/2-1/2"]
[WhiteElo "2884"]
[BlackElo "2723"]
[TimeControl "180+1"]
[EndTime "8:38:31 PDT"]
[Termination "Game drawn - insufficient material"]

1. e4 {[%clk 0:03:00.9]} 1... e6 {[%clk 0:02:59.6]} 2. d4 {[%clk 0:03:00.5]}
2... d5 {[%clk 0:02:59.8]} 3. Nc3 {[%clk 0:03:00.9]} 3... Bb4 {[%clk 0:02:57.6]}
4. e5 {[%clk 0:03:01]} 4... c5 {[%clk 0:02:57]} 5. Bd2 {[%clk 0:03:00.3]} 5...
Ne7 {[%clk 0:02:54.8]} 6. Nb5 {[%clk 0:03:00]} 6... Bxd2+ {[%clk 0:02:53.4]} 7.
Qxd2 {[%clk 0:03:00.6]} 7... O-O {[%clk 0:02:53.3]} 8. c3 {[%clk 0:03:01]} 8...
Nbc6 {[%clk 0:02:45.1]} 9. f4 {[%clk 0:03:00.9]} 9... cxd4 {[%clk 0:02:36.8]}
10. cxd4 {[%clk 0:03:00]} 10... Bd7 {[%clk 0:02:33.2]} 11. Nf3 {[%clk
0:02:57.9]} 11... a6 {[%clk 0:02:28.4]} 12. Nc3 {[%clk 0:02:54.9]} 12... b5
{[%clk 0:02:21]} 13. Bd3 {[%clk 0:02:53.2]} 13... Na5 {[%clk 0:02:19.7]} 14. b3
{[%clk 0:02:52.7]} 14... b4 {[%clk 0:02:18.4]} 15. Ne2 {[%clk 0:02:52.9]} 15...
Qb6 {[%clk 0:02:09.8]} 16. O-O {[%clk 0:02:40.6]} 16... Rab8 {[%clk 0:02:08.8]}
17. Rac1 {[%clk 0:02:38.9]} 17... Bb5 {[%clk 0:02:07.5]} 18. Bxb5 {[%clk
0:02:37.6]} 18... Qxb5 {[%clk 0:02:06.8]} 19. Rc5 {[%clk 0:02:37.7]} 19... Qb6
{[%clk 0:02:05.7]} 20. Rfc1 {[%clk 0:02:38.2]} 20... Rfc8 {[%clk 0:02:02.5]} 21.
Qc2 {[%clk 0:02:16.7]} 21... Rxc5 {[%clk 0:01:59.7]} 22. Qxc5 {[%clk 0:02:08.6]}
22... Qxc5 {[%clk 0:01:59.5]} 23. Rxc5 {[%clk 0:02:08.2]} 23... Nac6 {[%clk
0:01:57.4]} 24. g4 {[%clk 0:02:04.1]} 24... g6 {[%clk 0:01:47.7]} 25. Kf2 {[%clk
0:02:02.1]} 25... Kf8 {[%clk 0:01:47.8]} 26. Ke3 {[%clk 0:02:02]} 26... Ke8
{[%clk 0:01:47.7]} 27. Ng5 {[%clk 0:01:44.9]} 27... h6 {[%clk 0:01:40.2]} 28.
Nh7 {[%clk 0:01:44.5]} 28... Kd7 {[%clk 0:01:39.5]} 29. Nf6+ {[%clk 0:01:44.6]}
29... Kc7 {[%clk 0:01:39.1]} 30. Ng3 {[%clk 0:01:39]} 30... a5 {[%clk 0:01:29]}
31. Rc2 {[%clk 0:01:35.4]} 31... Ra8 {[%clk 0:01:24.5]} 32. f5 {[%clk
0:01:29.2]} 32... gxf5 {[%clk 0:01:23.7]} 33. gxf5 {[%clk 0:01:29.2]} 33... a4
{[%clk 0:01:23.9]} 34. bxa4 {[%clk 0:01:22.5]} 34... Rxa4 {[%clk 0:01:22.4]} 35.
fxe6 {[%clk 0:01:14.5]} 35... Ra3+ {[%clk 0:01:19.2]} 36. Kf4 {[%clk 0:01:05.7]}
36... fxe6 {[%clk 0:01:20.1]} 37. Ne2 {[%clk 0:01:04.2]} 37... Rh3 {[%clk
0:01:09.9]} 38. Ng3 {[%clk 0:01:02.3]} 38... Rh4+ {[%clk 0:01:00.7]} 39. Ng4
{[%clk 0:00:56.7]} 39... h5 {[%clk 0:00:58.7]} 40. Nxh5 {[%clk 0:00:52.8]} 40...
Rxh5 {[%clk 0:00:58.3]} 41. Nf6 {[%clk 0:00:49.8]} 41... Rh8 {[%clk 0:00:57.2]}
42. Kg5 {[%clk 0:00:48.9]} 42... Kb6 {[%clk 0:00:54.9]} 43. Nd7+ {[%clk
0:00:47.4]} 43... Kb5 {[%clk 0:00:55]} 44. Rc5+ {[%clk 0:00:46.8]} 44... Ka4
{[%clk 0:00:51.2]} 45. Kf6 {[%clk 0:00:44]} 45... Rxh2 {[%clk 0:00:45.7]} 46.
Kxe6 {[%clk 0:00:44]} 46... Rxa2 {[%clk 0:00:44.6]} 47. Nb6+ {[%clk 0:00:41.3]}
47... Ka3 {[%clk 0:00:44.7]} 48. Nxd5 {[%clk 0:00:41.8]} 48... Nxd4+ {[%clk
0:00:27.2]} 49. Kxe7 {[%clk 0:00:39.5]} 49... b3 {[%clk 0:00:27.7]} 50. Ne3
{[%clk 0:00:25.7]} 50... Re2 {[%clk 0:00:22.8]} 51. Nd1 {[%clk 0:00:22.6]} 51...
Re1 {[%clk 0:00:16.1]} 52. Nc3 {[%clk 0:00:20]} 52... Rxe5+ {[%clk 0:00:14.2]}
53. Rxe5 {[%clk 0:00:19]} 53... Nc6+ {[%clk 0:00:14.9]} 54. Kd6 {[%clk
0:00:18.7]} 54... Nxe5 {[%clk 0:00:15.8]} 55. Kxe5 {[%clk 0:00:19.4]} 55... Kb2
{[%clk 0:00:15.5]} 56. Kd4 {[%clk 0:00:19.1]} 56... Kc2 {[%clk 0:00:15.6]} 57.
Kc4 {[%clk 0:00:19.5]} 57... b2 {[%clk 0:00:16.1]} 58. Kb4 {[%clk 0:00:20]}
58... b1=Q+ {[%clk 0:00:16.6]} 59. Nxb1 {[%clk 0:00:20.6]} 1/2-1/2